Cogmind - Beta 15 @@@ ROGUE MODE // 2025.08.10 @ 22:38:28 Player: Luna Result: Self-destructed Performance ------------- Evolutions (1) 500 Regions Visited (2) 400 Robots Destroyed (42) 210 Value Destroyed (721) 721 Prototype IDs (2) 40 Alien Tech Used (0) 0 Bonus (11) 11 TOTAL SCORE: 1882 Bonus ------- High Alert Combat Kills 11 Cogmind --------- Core Integrity 297/400 Matter 25/300 Energy 250/250 System Corruption 0% Temperature Cool (4) Movement Core (250) Ox4 Location -9/Materials Parts ------- > --- POWER (1) -------- Ion Engine > --- PROPULSION (3) --- (None) > --- UTILITY (3) ------ Medium Storage Unit > --- WEAPON (2) ------- (None) > --- INVENTORY (10) --- Ion Engine Structural Scanner Seismic Detector Assault Rifle Light Cannon Light Cannon Improved Grenade Launcher Peak State ------------ > --- POWER ------------ Ion Engine > --- PROPULSION ------- Light Treads Light Treads Light Treads > --- UTILITY ---------- Medium Storage Unit Particle Charger Weapon Shielding > --- WEAPON ----------- Light Cannon Improved Grenade Launcher > --- INVENTORY -------- Ion Engine Improved Aluminum Leg Improved Aluminum Leg Improved Aluminum Leg Structural Scanner Seismic Detector Assault Rifle Light Cannon Light Cannon Improved Grenade Launcher [Rating: 14] Favorites ----------- Power Ion Engine Engine Ion Engine Propulsion Light Treads Treads Light Treads Utility Medium Storage Unit Device Particle Charger Storage Medium Storage Unit Protection Weapon Shielding Weapon Light Cannon Energy Gun EM Pulse Gun Ballistic Cannon Light Cannon Launcher Improved Grenade Launcher Build | -11 -10 -9 ------- Run | Yrd Mat Mat Slots Evolved 2 | . . 2 Power . | . . . Propulsion 1 | . . 1 Utility 1 | . . 1 Weapon . | . . . Parts Attached 15 | 7 5 3 Power 1 | 1 . . Engine 1 | 1 . . Core . | . . . Reactor . | . . . Propulsion 3 | 2 . 1 Treads 3 | 2 . 1 Leg . | . . . Wheel . | . . . Hover . | . . . Flight . | . . . Utility 6 | 2 3 1 Device 2 | 1 . 1 Storage 2 | 1 1 . Processor . | . . . Hackware . | . . . Protection 2 | . 2 . Artifact . | . . . Weapon 5 | 2 2 1 Energy Gun 2 | 2 . . Energy Cannon . | . . . Ballistic Gun . | . . . Ballistic Cannon 2 | . 2 . Launcher 1 | . . 1 Special Weapon . | . . . Impact Weapon . | . . . Slashing Weapon . | . . . Piercing Weapon . | . . . Special Melee Weapon . | . . . Unidentified Prototypes . | . . . Parts Lost 8 | . . 8 Power . | . . . Propulsion 3 | . . 3 Utility 3 | . . 3 Weapon 2 | . . 2 Highest Loss Streak 5 | . . 5 To Critical Strikes . | . . . Average Backups 7 | . 7 9 Power . | . 1 1 Propulsion 1 | . . 2 Utility 3 | . 4 2 Weapon 2 | . 2 3 Tool/Special . | . . . Unused Backups 14 | 2 . 12 Power 1 | . . 1 Propulsion 5 | 1 . 4 Utility 4 | . . 4 Weapon 4 | 1 . 3 Tool/Special . | . . . Average Slot Usage (%) 94 | . 100 88 Engine 12 | . 14 11 Treads 28 | . 28 29 Device 3 | . 3 3 Storage 12 | . 14 11 Protection 10 | . 10 11 Energy Gun 5 | . 10 . Ballistic Cannon 18 | . 17 19 Launcher 1 | . . 2 Peak Build Rating 14 | 7 8 14 Average Rating 8 | 5 7 9 On Entrance 5 | . 7 8 Naked Turns . | . . . Heaviest Build 28 | 14 24 28 Greatest Support 60 | 40 40 60 Greatest Overweight (x) 7 | 4 . 7 Average Overweight (x) . | . . . Largest Inventory Capacity 10 | 8 10 10 Average Capacity 9 | 7 9 10 Most Carried 10 | 1 10 10 Average Carried 7 | . 7 9 Final Capacity 10 | 8 10 10 Final Carried 10 | 1 10 7 Class Distribution -------------------- 100% | Mutant Dominant Class ---------------- Mutant | -10/Materials Mutant | -9/Materials Resources | -11 -10 -9 ----------- Run | Yrd Mat Mat Matter Collected 698 | 280 75 343 Remotely . | . . . Salvage Created 1026 | 134 99 793 Parts 71 | 8 10 53 Haulers Intercepted 1 | . . 1 Recyclers Shooed 3 | 1 . 2 Parts Field Recycled . | . . . Retrieved Matter . | . . . Parts Self-Destructed . | . . . Prevented . | . . . Kills | -11 -10 -9 ------- Run | Yrd Mat Mat Combat Hostiles Destroyed 25 | . 7 18 Guns 1 | . 1 . Cannons 16 | . 6 10 AOE 8 | . . 8 Classes Destroyed 10 | 2 2 6 Worker 1 | . . 1 Builder 3 | . . 3 Tunneler 2 | 2 . . Hauler 1 | . . 1 Recycler 8 | 1 . 7 Mechanic 1 | . . 1 Watcher 1 | . . 1 Swarmer 14 | . 6 8 Grunt 9 | . 1 8 Sentry 2 | . . 2 Best Kill Streak 15 | 2 4 15 Combat Bots Only 5 | . 4 5 Max Kills in Single Turn 3 | 1 2 3 Gunslinging . | . . . Exploded 2 | . . 2 Melee . | . . . Uniques/NPCs Destroyed . | . . . Combat | -11 -10 -9 -------- Run | Yrd Mat Mat Hostile Shots Fired 122 | . 42 80 Missed 27 | . 10 17 Hits 95 | . 32 63 Projectile 95 | . 32 63 Critical Strikes 3 | . . 3 Actively Blocked 2 | . . 2 Damage Taken 1135 | . 281 854 Core 148 | . 45 103 Absorbed by Shields . | . . . Redirected to Shielding 50 | . . 50 Core Remaining (%) 91 | 100 82 . Volleys Fired 74 | 10 18 46 Largest 2 | 2 2 2 Hottest 80 | 80 80 66 Shots Fired 147 | 20 36 91 Gun 28 | 20 8 . Cannon 102 | . 28 74 Launcher 17 | . . 17 Special . | . . . Kinetic 102 | . 28 74 Thermal 14 | 10 4 . Explosive 17 | . . 17 Electromagnetic 14 | 10 4 . Robot Hit Streak 8 | 4 2 8 Robot Miss Streak 5 | 2 5 4 Penetration Max . | . . . Secondary Targets . | . . . Shots Hit Robots 74 | 12 13 49 Core Hits 53 | 4 9 40 Critical Kills . | . . . Critical Parts Destroyed . | . . . Critical Strikes 2 | . . 2 Blast 2 | . . 2 Melee Attacks . | . . . Impact . | . . . Slashing . | . . . Piercing . | . . . Sneak Attacks . | . . . Combat Hostiles . | . . . Follow-up Attacks . | . . . Damage Inflicted 2266 | 154 274 1838 Guns 212 | 154 58 . Cannons 881 | . 216 665 Explosions 1172 | . . 1172 Melee . | . . . Ramming 1 | . . 1 Kinetic 881 | . 216 665 Thermal 79 | 47 32 . Explosive 1172 | . . 1172 Electromagnetic 133 | 107 26 . Impact . | . . . Slashing . | . . . Piercing . | . . . Highest Corruption 2 | . 2 . Average Corruption 2 | . 2 . Corruption Purged . | . . . Corruption Blocked . | . . . Effects 5 | . 5 . Message Errors 2 | . 2 . Matter Fused 3 | . 3 . Overload Shots . | . . . Overflow Damage 43 | . . 43 Projectiles 5 | . . 5 Explosions 38 | . . 38 Melee . | . . . Knockbacks 13 | . 2 11 Impact . | . . . Kinetic 12 | . 2 10 Secondary 1 | . . 1 Self-Inflicted Damage 105 | . . 105 Shots 4 | . . 4 Rammed 3 | . . 3 Targets Rammed 3 | . . 3 Kicked . | . . . Crushed . | . . . Highest Temperature 99 | 72 72 99 Average Temperature 32 | 33 27 35 Received Heat Transfer 318 | . 36 282 Siege Activations . | . . . Martial Activations . | . . . Shielding Activations . | . . . Robots Disrupted . | . . . Combat Hostiles . | . . . Robots Corrupted . | . . . Combat Hostiles . | . . . Parts Fried 1 | 1 . . Impact Corruptions . | . . . Robots Melted . | . . . Combat Hostiles . | . . . Parts Melted . | . . . Heat Transferred 175 | 100 75 . Parts Sabotaged . | . . . Parts Stolen . | . . . Parts Stripped . | . . . Power Chain Reactions . | . . . Alert | -11 -10 -9 ------- Run | Yrd Mat Mat Maximum Alert Level 2 | . . 2 Low Security (%) 91 | 100 100 81 Level 1 6 | . . 14 Level 2 1 | . . 3 Level 3 . | . . . Level 4 . | . . . Level 5 . | . . . High Security . | . . . Max Security . | . . . Peak Influence 410 | 10 123 410 Initial 39 | . . 39 Average 48 | . 17 94 Influence Increases 949 | 15 212 722 Destroy 0b10 Robot/C 500 | . 140 360 Destroy 0b10 Robot/NC 85 | 15 . 70 Destroy Leader 104 | . 20 84 Successful Hack 45 | . 37 8 Disable Machine 75 | . 15 60 Destroy Structure 95 | . . 95 Lose Combat Pursuer 45 | . . 45 Influence Decreases 575 | 15 117 443 Entered New Map 56 | . . 56 Time Decay 439 | 15 117 307 Lost Part 80 | . . 80 Squads Dispatched 5 | . . 5 Investigation 1 | . . 1 Extermination . | . . . Reinforcement 4 | . . 4 Assault . | . . . Garrison . | . . . Intercept . | . . . Searches Triggered . | . . . Construction Impeded 1 | . . 1 Haulers Reinforced . | . . . Active Scanning Responses . | . . . Cargo Convoy Interrupts . | . . . Stealth | -11 -10 -9 --------- Run | Yrd Mat Mat Distress Signals 3 | . 2 1 Communications Jammed . | . . . Distress Signals . | . . . Times Spotted 37 | . 10 27 Peak Tracking Total 7 | . 3 7 Tactical Retreats 2 | . . 2 Traps | -11 -10 -9 ------- Run | Yrd Mat Mat Traps Triggered 1 | . 1 . Indirectly . | . . . Trap Hack Attempts . | . . . Triggered . | . . . Disarmed . | . . . Reprogrammed . | . . . Reused . | . . . Traps Extracted . | . . . Installed . | . . . Triggered . | . . . Machines | -11 -10 -9 ---------- Run | Yrd Mat Mat Machines Disabled 5 | . 1 4 Max in Single Turn 2 | . 1 2 Machines Repaired . | . . . Machines Dismantled . | . . . Machines Sabotaged . | . . . Overloaded Fab Kills . | . . . Hacking | -11 -10 -9 --------- Run | Yrd Mat Mat Machines Accessed 8 | . 6 2 Terminals 7 | . 5 2 Fabricators . | . . . Repair Stations . | . . . Recycling Units 1 | . 1 . Scanalyzers . | . . . Garrison Access . | . . . Total Hacks 37 | . 31 6 Successful 20 | . 18 2 Failed 17 | . 13 4 Catastrophic 2 | . 1 1 Database Lockouts . | . . . Manual 1 | . 1 . Terminals 34 | . 28 6 Fabricators . | . . . Repair Stations . | . . . Recycling Units 3 | . 3 . Scanalyzers . | . . . Garrison Access . | . . . Terminal Hacks 18 | . 16 2 Record 4 | . 4 . Prototype ID Bank 1 | . 1 . Emergency Access Points 3 | . 3 . Repair Station Index 1 | . 1 . Scanalyzer Index 1 | . 1 . Alert Level 2 | . 1 1 Locate Traps 2 | . 2 . Dispatch Records 1 | . 1 . Maintenance Status 1 | . 1 . Security Status 1 | . 1 . Recall Reinforcements 1 | . . 1 Fabricator Hacks . | . . . Repair Station Hacks . | . . . Recycling Unit Hacks 2 | . 2 . Process 1 | . 1 . Report Inventory 1 | . 1 . Scanalyzer . | . . . Garrison Access Hacks . | . . . Unauthorized Hacks . | . . . Terminals . | . . . Fabricators . | . . . Repair Stations . | . . . Recycling Units . | . . . Scanalyzers . | . . . Garrison Access . | . . . Data Cores Recovered . | . . . Used . | . . . Hacking Detections 7 | . 5 2 Full Trace Events 2 | . 1 1 Feedback Events . | . . . Feedback Blocked . | . . . Robot Schematics Acquired . | . . . Robots Built . | . . . Authchips . | . . . Time . | . . . Total Robot Build Rating . | . . . Part Schematics Acquired . | . . . Parts Built . | . . . Authchips . | . . . Time . | . . . Total Part Build Rating . | . . . Parts Repaired . | . . . Time . | . . . Parts Recycled . | . . . Recycled Matter . | . . . Retrieved Matter . | . . . Retrieved Components . | . . . Parts Scanalyzed . | . . . Part Schematics Acquired . | . . . Parts Damaged . | . . . Bothacking | -11 -10 -9 ------------ Run | Yrd Mat Mat Used RIF Installer . | . . . Robots Hacked . | . . . Non-combat . | . . . Combat . | . . . Robot Hacks Applied . | . . . Relay Couplers Released . | . . . Fabnet Peak Effective % . | . . . Robots Rewired . | . . . Allies Hacked . | . . . Hacks Repelled . | . . . Allies | -11 -10 -9 -------- Run | Yrd Mat Mat Total Allies . | . . . Largest Group . | . . . Highest-Rated Group . | . . . Highest-Rated Ally . | . . . Total Orders . | . . . Ally Attacks . | . . . Total Damage . | . . . Kills . | . . . Allies Corrupted . | . . . Allies Melted . | . . . Intel | -11 -10 -9 ------- Run | Yrd Mat Mat Active Infowar (turns) 220 | 29 191 . Seismic 220 | 29 191 . Robot Analysis Total . | . . . Derelict Logs Recovered . | . . . Drone Launches . | . . . Drone Recoveries . | . . . Exploration | -11 -10 -9 ------------- Run | Yrd Mat Mat Turns Passed 1757 | 213 782 762 Spaces Moved 912 | 108 445 359 Core 29 | 25 . 4 Treads 883 | 83 445 355 Legs . | . . . Wheels . | . . . Hover . | . . . Flight . | . . . Fastest Speed 50 | 50 160 160 Average Speed 160 | 154 160 162 Slowest Speed 400 | 250 160 400 Overloaded Moves . | . . . Propulsion Burnouts . | . . . Robots Hopped . | . . . Potential Cave-ins . | . . . Cave-ins Triggered . | . . . Exploration Rate (%) 28 | 5 54 26 Regions Visited 2 Branch Regions . Pre-discovered Areas . | . . . Known Exits Taken . | . . . Unknown Exits Taken 2 | 1 1 . Scrap Searched . | . . . Spaces Dug 8 | . . 8 Terrain Destroyed 133 | . . 133 Melee . | . . . Projectile 1 | . . 1 AOE 132 | . . 132 Terrain Rammed . | . . . Walls Destroyed . | . . . Machines Disabled . | . . . Actions | -11 -10 -9 --------- Run | Yrd Mat Mat Total 1051 | 132 477 442 Wait 14 | . . 14 Move 910 | 107 444 359 Hop . | . . . Pick Up 19 | 3 9 7 Fast Attach 10 | 8 . 2 Attach 1 | . . 1 Detach 1 | 1 . . Swap 6 | . 5 1 Drop 13 | 3 1 9 Fire 74 | 10 18 46 Melee . | . . . Ram 2 | . . 2 Kick . | . . . Crush 1 | . . 1 Escape Stasis . | . . . Rewire . | . . . Trap . | . . . Miscellaneous . | . . . Route ------- -11/Scrapyard -10/Materials (discovered 4 exits: *Mat x2 / [*Min] / [*Sub]) -9/Materials History --------- Turn | Location | Event 13 | -11/Scrapyard | Discovered new exit (range 15) 214 | -11/Scrapyard | Entered Materials 310 | -10/Materials | Build established: Mutant 346 | -10/Materials | Discovered new exit (range 10) 457 | -10/Materials | Discovered new exit (range 16) 546 | -10/Materials | Discovered new exit (range 8) 941 | -10/Materials | Discovered new exit (range 13) 996 | -10/Materials | Entered another Materials area 996 | -9/Materials | Evolved 2 slots: Propulsion x1, Utility x1 1749 | -9/Materials | Lost 5 parts (3n2u) 1758 | -9/Materials | Self-destructed Last Messages --------------- 01744_ Acquired 4 matter. 01745_ U-05 Engineer builds a Wall. 01745_ U-05 Engineer lays Concrete. 01747_ K-01 Serf collects debris. 01747_ U-05 Engineer lays Concrete. 01748_ Slammed into G-34 Mercenary. 01749_ K-01 Serf collects debris. 01749_ U-05 Engineer lays Concrete. 01750_ K-01 Serf collects debris. 01751_ U-05 Engineer builds a Wall. 01752_ Slammed into G-34 Mercenary. 01753_ K-01 Serf collects debris. 01754_ The unstable cave ceiling collapses. 01754_ K-01 Serf collects debris. 01755_ U-05 Engineer lays Concrete. 01755_ Imp. Grenade Launcher destroyed. 01756_ U-05 Engineer lays Concrete. 01756_ G-34 Mercenary knocked back. 01757_ Lgt. Cannon destroyed. 01758_ U-05 Engineer builds a Wall. Map ----- +----------------------------------------------------+ | | | | | | | ?????????????????????????????????????????????????? | | ?????????????????????????????????????????????????? | | ?????????????????????????????????????????????????? | | ?????????????????????????????????????????????????? | | ?????????????????????????????????????????????????? | | ?????????????????????????????????????????????????? | | ?????????????????????????????????????????????????? | | ?????????????????????????????????????????????????? | | ?????????????????????????????????????????????????? | | ?????????????????????????????????????????????????? | | ?????????????????????????????????????????????????? | | ?????????????????????????????????????????????????? | | ????????????????????" ???????????????????????????? | | ??????????????????""" ?##????????????????????????? | | ??????????????????""" ?# ????????????????????????? | | ???????????????????"" # ????????????????????????? | | ????????????????????" # ????????????????????????? | | ????????????????????? # ????????????????????????? | | ?????????????????????? # ????????????????????????? | | ????????????????###+### #####???????????????????? | | ???????????###### #???????????????????? | | ?????????? #!*[######??????????????? | | ?????????? g @=%* g #????????? | | ?????????? ## #[ ####???????????????? | | ?????????????#### ##??????????????????? | | ???????????????###### # #??????????????????? | | ???????????????""" # # ###????????????????? | | ?????????????# "R" [ # # !###########??????? | | ?????????????? " " # === ## !##*= #??????? | | ?????????????? ### !##*[ #??????? | | ?????????????# ! ##?# !##* #??????? | | ?????????????#### # #u #### ! #??????? | | ????????? % = ! #+#####??????? | | ?????????????### ########### #??????????? | | ???????????????# ### #??????????? | | ???????????????# # % ! #??????????? | | ???????????????# #### ### " #??????????? | | ???????????????# # ##+##### ="R" #??????????? | | ???????????????## # =## " " #??????????? | | ????????????????### # """ # #??????????? | | ??????????????????##?# """ ## #??????????? | | ?????????????????????# """ ## "" ###########? | | ?????????????????????# ## """ ## !!## ? | | ?????????????????????# "T" ## " !!## ? | | ?????????????????????######### !!## ? | | ???????????????????????????# ! ## #? | | ???????????????????????????# = ## #? | +----------------------------------------------------+ Best States ------------- Heat Dissipation 28 Energy Generation 10 Energy Capacity 250 Matter Stores 300 Matter Capacity 300 Sight Range 16 Terrain Scan Density 10 Armor Coverage 150 Weapon Shielding 33 Evasion (%) 40 Recoil Reduction 3 Particle Charging 15 Item Schematics ----------------- None Robot Schematics ------------------ None Fabricated ------------ Nothing Repaired ---------- Nothing Alien Tech Used ----------------- None Achievements -------------- None Challenges ------------ None Game ------ Seed MolecularMiniRecalibrator Manual? 0 Play Time 00:20:14 Cumulative 19.4 hours Start 2025.08.10 @ 22:19:41 End 2025.08.10 @ 22:38:28 Sessions 1 Manual Loads 0 Difficulty Rogue Special Mode None Game No. 42 Rogue 42 Adventurer 0 Explorer 0 Win Type - Total 0 Types 0/0/0/0/0/0/0/0/0/0 Lore% 10 Gallery% 13 Achievement% 17 Wizard Run 0 Options --------- Layout 2 ASCII 0 Keyboard 1 Movement Vi Keybinds 0 Fullscreen 1 Font 24/Tamsyn Map View 50x44 Zoom Use 0% Tactical HUD 1 Map Filters NONE Filters NONE Steam 1 RUN: 45ff4607-b667-4258-9bf7-9cb7fde23dfc